bitfinex/quotes_BTCUSD_20240810
["timestamp","ask_amount","ask_price","bid_price","bid_amount"]
[1723269746317,0.14663208,60507.0,60506.0,0.48023867]
[1723269746536,0.14763208,60507.0,60506.0,0.48023867]
[1723269746885,0.14563208,60507.0,60506.0,0.48023867]
[1723269747514,0.14563208,60507.0,60506.0,0.48123867]
[1723269748322,0.14563208,60507.0,60506.0,0.81178367]
[1723269748556,0.14563208,60507.0,60506.0,0.67455708]
[1723269748756,0.14563208,60507.0,60506.0,0.81178364]
[1723269751773,0.14563208,60507.0,60506.0,0.48123864]
[1723269752049,0.14563208,60507.0,60506.0,0.34401208]
[1723269752328,0.14563208,60507.0,60506.0,0.48123833]
[1723269752541,0.14563208,60507.0,60506.0,0.34401208]
[1723269752827,0.14563208,60507.0,60506.0,0.48123833]
[1723269753440,0.14763208,60507.0,60506.0,0.48023833]
[1723269753950,0.14963208,60507.0,60506.0,0.48023833]
[1723269754441,0.14963208,60507.0,60506.0,0.81078333]
[1723269754581,0.14763208,60507.0,60506.0,0.81078333]
[1723269755698,0.14763208,60507.0,60506.0,0.67355708]
[1723269755866,0.14563208,60507.0,60506.0,0.81078303]
[1723269756630,0.14563208,60507.0,60506.0,0.81278303]
[1723269756853,0.14563208,60507.0,60506.0,0.81078303]
[1723269757201,0.14663208,60507.0,60506.0,0.81078303]
[1723269757391,0.14663208,60507.0,60506.0,0.48023803]
[1723269757975,0.14763208,60507.0,60506.0,0.48023803]
[1723269759073,0.14763208,60507.0,60506.0,0.34301208]
[1723269759276,0.14763208,60507.0,60506.0,0.48023865]
[1723269759675,0.31190208,60507.0,60506.0,0.15115173]
[1723269759858,0.31290208,60507.0,60506.0,0.15115173]
[1723269760962,0.31190208,60507.0,60506.0,0.15115173]
[1723269761732,0.31290208,60507.0,60506.0,0.15115173]
[1723269762131,0.33779421,60507.0,60506.0,0.15115173]
[1723269762564,0.33879421,60507.0,60506.0,0.15115173]
[1723269762880,0.33879421,60507.0,60506.0,0.15115634]
[1723269763213,0.33879421,60507.0,60506.0,0.15115675]
[1723269767339,0.36881935,60507.0,60506.0,0.15115675]
[1723269769951,0.48220823,60507.0,60506.0,0.15115705]
[1723269770090,0.48120823,60507.0,60506.0,0.15115705]
[1723269770421,0.48220823,60507.0,60506.0,0.15115705]
[1723269770626,0.48120823,60507.0,60506.0,0.15115705]
[1723269770860,0.31493823,60507.0,60506.0,0.15115705]
[1723269771064,0.20353823,60507.0,60506.0,0.15115705]
[1723269771239,0.20253823,60507.0,60506.0,0.15115705]
[1723269771597,0.20453823,60507.0,60506.0,0.15115705]
[1723269772361,0.20353823,60507.0,60506.0,0.15115705]
[1723269772497,1.02988823,60507.0,60506.0,0.15115705]
[1723269772701,1.02988823,60507.0,60506.0,0.01392516]
[1723269772702,1.70096823,60507.0,60506.0,0.01392516]
[1723269772907,1.70096823,60507.0,60502.0,0.0009141]
[1723269772908,0.972105,60503.0,60502.0,0.0009141]
[1723269773128,1.70344547,60503.0,60502.0,0.0009141]
[1723269773326,1.60472352,60503.0,60502.0,0.0009141]
[1723269773550,1.65019754,60503.0,60502.0,0.0009141]
[1723269773753,1.526067,60503.0,60502.0,0.0009141]
[1723269773951,1.64995562,60503.0,60502.0,0.0009141]
[1723269774172,1.6499556,60503.0,60502.0,0.0009141]
[1723269774365,1.76845302,60503.0,60502.0,0.0009141]
[1723269775136,1.78245302,60503.0,60502.0,0.0009141]
[1723269775768,1.95285302,60503.0,60502.0,0.0009141]
[1723269776212,2.06241519,60503.0,60502.0,0.0009141]
[1723269776808,2.07641519,60503.0,60502.0,0.0009141]
[1723269776987,2.06238329,60503.0,60502.0,0.0009141]
[1723269777388,2.07638329,60503.0,60502.0,0.0009141]
[1723269777587,2.06238329,60503.0,60502.0,0.0009141]
[1723269777994,2.09038329,60503.0,60502.0,0.0009141]
[1723269778175,1.95282112,60503.0,60502.0,0.0009141]
[1723269778369,1.93882112,60503.0,60502.0,0.0009141]
[1723269778573,1.95282112,60503.0,60502.0,0.0009141]
[1723269778797,1.96682112,60503.0,60502.0,0.0009141]
[1723269779164,2.09040218,60503.0,60502.0,0.0009141]
[1723269779359,2.42096418,60503.0,60502.0,0.0009141]
[1723269779571,2.40696418,60503.0,60502.0,0.0009141]
[1723269780215,2.29738312,60503.0,60502.0,0.0019141]
[1723269780479,2.21884392,60503.0,60502.0,0.0019141]
[1723269780632,2.31743807,60503.0,60502.0,0.0019141]
[1723269780835,2.28343807,60503.0,60502.0,0.0009141]
[1723269781232,2.28343807,60503.0,60502.0,0.0019141]
[1723269781576,2.28343807,60503.0,60502.0,0.0009141]
[1723269781777,2.28343807,60503.0,60502.0,0.0019141]
[1723269782331,2.31743807,60503.0,60502.0,0.0019141]
[1723269782725,2.23884392,60503.0,60502.0,0.0019141]
[1723269782925,2.28358304,60503.0,60502.0,0.0019141]
[1723269783128,2.28358304,60503.0,60502.0,0.0009141]
[1723269783540,2.24912881,60503.0,60502.0,0.0019141]
[1723269783739,2.23512881,60503.0,60502.0,0.0009141]
[1723269784144,2.24912881,60503.0,60502.0,0.0019141]
[1723269784340,2.25512881,60503.0,60502.0,0.0009141]
[1723269784547,2.24112881,60503.0,60502.0,0.0009141]
[1723269784788,2.25512881,60503.0,60502.0,0.0019141]
[1723269785098,2.25512881,60503.0,60502.0,0.0009141]
[1723269785306,2.24112881,60503.0,60502.0,0.0009141]
[1723269785666,2.23512881,60503.0,60502.0,0.0009141]
[1723269786207,2.22112881,60503.0,60502.0,0.0009141]
[1723269786511,2.24912881,60503.0,60502.0,0.0019141]
[1723269786749,2.23512881,60503.0,60502.0,0.0009141]
[1723269787084,2.24912881,60503.0,60502.0,0.0019141]
[1723269787401,2.23512881,60503.0,60502.0,0.0009141]
[1723269787610,2.24912881,60503.0,60502.0,0.0019141]
[1723269787803,2.23512881,60503.0,60502.0,0.0009141]
[1723269788342,2.24912881,60503.0,60502.0,0.0019141]
[1723269788753,2.23512881,60503.0,60502.0,0.0019141]
[1723269789074,2.24912881,60503.0,60502.0,0.0019141]
[1723269789406,2.29782346,60503.0,60502.0,0.0009141]
[1723269789633,2.28982346,60503.0,60502.0,0.0009141]
[1723269789791,2.31782346,60503.0,60502.0,0.0019141]
[1723269789996,2.3180761,60503.0,60502.0,0.0019141]
[1723269790202,0.82665,60485.0,60484.0,0.0009141]
[1723269790420,1.15731,60485.0,60484.0,0.0009141]
[1723269790609,1.18785544,60485.0,60484.0,0.0009141]
[1723269790811,1.27935544,60485.0,60484.0,0.0009141]
[1723269791289,1.49105569,60485.0,60484.0,0.0009141]
[1723269792192,1.49103208,60485.0,60484.0,0.0009141]
[1723269792892,1.50503208,60485.0,60484.0,0.0009141]
[1723269793336,1.46765544,60485.0,60484.0,0.0009141]
[1723269793530,1.45563181,60485.0,60484.0,0.0009141]
[1723269793844,1.43911,60485.0,60484.0,0.0009141]
[1723269794032,1.46963171,60485.0,60484.0,0.0009141]
[1723269796080,1.46964382,60485.0,60484.0,0.0009141]
[1723269796921,1.43911,60485.0,60484.0,0.0009141]
[1723269797125,1.46964457,60485.0,60484.0,0.0009141]
[1723269797326,1.45964457,60485.0,60484.0,0.0009141]
[1723269797525,1.45964247,60485.0,60484.0,0.0009141]
[1723269797750,1.46964247,60485.0,60484.0,0.0009141]
[1723269798863,1.46967329,60485.0,60484.0,0.0009141]
[1723269799704,1.58327329,60485.0,60484.0,0.0009141]
[1723269800661,1.56933289,60485.0,60484.0,0.0009141]
[1723269801491,1.58333289,60485.0,60484.0,0.0009141]
[1723269803525,1.43953289,60485.0,60484.0,0.0009141]
[1723269804180,1.40891,60485.0,60484.0,0.0009141]
[1723269804522,1.43955652,60485.0,60484.0,0.0009141]
[1723269806184,1.76752114,60485.0,60484.0,0.0009141]
[1723269806410,2.31227469,60485.0,60484.0,0.0009141]
[1723269806543,2.14812499,60485.0,60484.0,0.0009141]
[1723269807789,1.229958,60472.0,60471.0,0.0009141]
[1723269807932,1.26093618,60472.0,60471.0,0.0009141]
[1723269808136,1.29853618,60472.0,60471.0,0.0009141]
[1723269808330,1.62926718,60472.0,60471.0,0.0009141]
[1723269808591,1.67839344,60472.0,60471.0,0.0009141]
[1723269809033,1.67839344,60472.0,60448.0,0.0664]
[1723269809034,1.157999,60449.0,60448.0,0.0664]
[1723269809216,0.506342,60442.0,60436.0,0.009141]
[1723269809454,1.40975434,60442.0,60436.0,0.009141]
[1723269809653,1.74705856,60442.0,60436.0,0.009141]
[1723269809792,1.98653144,60442.0,60436.0,0.009141]
[1723269809994,2.17034636,60442.0,60436.0,0.009141]
[1723269810196,1.601853,60437.0,60436.0,0.009141]
[1723269810398,1.86846017,60437.0,60436.0,0.009141]
[1723269810603,1.96846017,60437.0,60436.0,0.009141]
[1723269810838,1.499275,60432.0,60429.0,0.009141]
[1723269811170,2.12933638,60432.0,60429.0,0.009141]
[1723269811370,2.15994174,60432.0,60429.0,0.009141]
[1723269812498,2.17394174,60432.0,60429.0,0.009141]
[1723269812719,2.14333638,60432.0,60429.0,0.009141]
[1723269813366,2.15733638,60432.0,60429.0,0.009141]
[1723269813569,2.14333638,60432.0,60429.0,0.009141]
[1723269814008,1.81238638,60432.0,60429.0,0.009141]
[1723269814168,1.79838638,60432.0,60429.0,0.009141]
[1723269814367,1.81238638,60432.0,60429.0,0.009141]
[1723269814572,1.82638638,60432.0,60429.0,0.009141]
[1723269814846,1.64857146,60432.0,60429.0,0.009141]
[1723269815057,1.66257146,60432.0,60429.0,0.009141]
[1723269818639,1.64857146,60432.0,60429.0,0.009141]
[1723269819062,1.64857146,60432.0,60429.0,0.084941]
[1723269819281,1.66257146,60432.0,60429.0,0.084941]
[1723269819633,1.64857146,60432.0,60429.0,0.084941]
[1723269820021,1.66257146,60432.0,60429.0,0.084941]
[1723269820220,1.64857146,60432.0,60429.0,0.084941]
[1723269820417,1.63457146,60432.0,60429.0,0.084941]
[1723269820699,1.64857146,60432.0,60429.0,0.084941]
[1723269820977,1.66257146,60432.0,60431.0,0.0010152]
[1723269824278,1.64857146,60432.0,60431.0,0.0010152]
[1723269824611,1.66257146,60432.0,60431.0,0.0010152]
[1723269826054,1.64857146,60432.0,60431.0,0.0010152]
[1723269826397,1.66257146,60432.0,60431.0,0.0010152]
[1723269834189,1.99352146,60432.0,60431.0,0.0010152]
[1723269834583,0.193475,60432.0,60431.0,0.1423152]
[1723269834784,0.028,60432.0,60431.0,0.16899387]
[1723269836219,0.014,60432.0,60431.0,0.16899387]
[1723269836578,0.179475,60432.0,60431.0,0.16899387]
[1723269836984,0.015,60432.0,60431.0,0.16899387]
[1723269837201,0.496405,60435.0,60431.0,0.16899387]
[1723269837401,0.165472,60433.0,60432.0,0.0769]
[1723269837599,0.330936,60435.0,60432.0,0.0769]
[1723269837600,0.330936,60435.0,60433.0,0.0769]
[1723269837801,0.496403,60435.0,60434.0,0.10358408]
[1723269838435,0.52730688,60435.0,60434.0,0.10358408]
[1723269838787,0.53330688,60435.0,60434.0,0.10358408]
[1723269839191,0.53330683,60435.0,60434.0,0.10358408]
[1723269839966,0.53430683,60435.0,60434.0,0.10358408]
[1723269840185,0.52830683,60435.0,60434.0,0.10358408]
[1723269840357,0.52833471,60435.0,60434.0,0.10358408]
[1723269840514,0.498403,60435.0,60434.0,0.10358408]
[1723269840737,0.52933471,60435.0,60434.0,0.10358408]
[1723269840953,0.52733471,60435.0,60434.0,0.10358408]
[1723269841427,0.52833471,60435.0,60434.0,0.10358408]
[1723269842098,0.52733471,60435.0,60434.0,0.10358408]
[1723269842596,0.52833708,60435.0,60434.0,0.10358408]
[1723269842800,0.85927308,60435.0,60434.0,0.10358408]
[1723269843105,0.52733691,60435.0,60434.0,0.10358408]
[1723269843321,0.55326181,60435.0,60434.0,0.0769]
[1723269843521,0.55526181,60435.0,60434.0,0.0769]
[1723269844047,0.55326181,60435.0,60434.0,0.0769]
[1723269844473,0.55426181,60435.0,60434.0,0.0769]
[1723269845078,0.55326181,60435.0,60434.0,0.10351049]
[1723269845301,0.55526181,60435.0,60434.0,0.10351049]
[1723269845953,0.55526181,60435.0,60434.0,0.10442569]
[1723269846365,0.55626181,60435.0,60434.0,0.10442569]
[1723269846571,0.55426181,60435.0,60434.0,0.0778152]
[1723269846773,0.22330417,60435.0,60434.0,0.0778152]
[1723269846993,0.55423817,60435.0,60434.0,0.10442569]
[1723269847225,0.55523817,60435.0,60434.0,0.10442569]
[1723269847656,0.55423817,60435.0,60434.0,0.10442569]
[1723269847865,0.55623817,60435.0,60434.0,0.10442569]
[1723269848531,0.55423817,60435.0,60434.0,0.10442569]
[1723269849087,0.22230417,60435.0,60434.0,0.16872569]
[1723269849495,0.05683717,60435.0,60434.0,0.16872569]
[1723269849669,0.0259249,60435.0,60434.0,0.33419469]
[1723269849868,0.000832,60436.0,60435.0,0.560701]
[1723269850268,0.000832,60436.0,60435.0,0.77879651]
[1723269850505,0.000832,60436.0,60435.0,0.80540548]
[1723269851218,0.000832,60436.0,60435.0,0.47447148]
[1723269851683,0.002832,60436.0,60435.0,0.30900448]
[1723269852581,0.003832,60436.0,60435.0,0.30900448]
[1723269853028,0.003832,60436.0,60435.0,0.47447148]
[1723269853307,0.003832,60436.0,60435.0,1.6310884]
[1723269854028,0.001832,60436.0,60435.0,1.63105681]
[1723269854490,0.002832,60436.0,60435.0,1.63105681]
[1723269854936,0.000832,60436.0,60435.0,1.63105681]
[1723269855156,0.000832,60436.0,60435.0,1.64101976]
[1723269855858,0.000832,60436.0,60435.0,1.64301976]
[1723269856304,0.000832,60436.0,60435.0,1.64501976]
[1723269857464,0.000832,60436.0,60435.0,1.50765584]
[1723269857874,0.000832,60436.0,60435.0,1.64501933]
[1723269869039,0.000832,60436.0,60435.0,1.50765584]
[1723269869240,0.000832,60436.0,60435.0,1.64502031]
[1723269869453,0.000832,60436.0,60435.0,1.64593551]
[1723269869990,0.000832,60436.0,60435.0,1.64593455]
[1723269873068,0.000832,60436.0,60435.0,1.50857104]
[1723269873303,0.000832,60436.0,60435.0,1.64594012]
[1723269876319,0.000832,60436.0,60435.0,1.64593485]
[1723269876531,0.000832,60436.0,60435.0,1.83509981]
[1723269877105,0.000832,60436.0,60435.0,1.83438]
[1723269879461,0.000832,60436.0,60435.0,2.07476498]
[1723269879820,0.000832,60436.0,60435.0,2.07076498]
[1723269879951,0.001832,60436.0,60435.0,2.07276498]
[1723269880351,0.001832,60436.0,60435.0,1.9010898]
[1723269880580,0.001832,60436.0,60435.0,2.07279334]
[1723269880782,0.001832,60436.0,60435.0,1.8667491]
[1723269881001,0.002832,60436.0,60435.0,2.07479338]
[1723269882326,0.001832,60436.0,60435.0,2.07279338]
[1723269882767,0.001832,60436.0,60435.0,2.07879338]
[1723269883057,0.001832,60436.0,60435.0,2.44072738]
[1723269883377,0.001832,60436.0,60435.0,3.09872738]
[1723269883378,0.002832,60436.0,60435.0,3.09872738]
[1723269883682,0.002832,60436.0,60435.0,3.20222473]
[1723269883903,0.000832,60442.0,60441.0,1.424153]
[1723269884112,0.000832,60442.0,60441.0,2.25539435]
[1723269884502,0.000832,60442.0,60441.0,2.28172323]
[1723269884678,0.000832,60442.0,60441.0,2.28372323]
[1723269884879,0.000832,60442.0,60441.0,2.28172323]
[1723269885088,0.000832,60442.0,60441.0,2.61262423]
[1723269885266,0.000832,60442.0,60441.0,2.71611303]
[1723269885637,0.000832,60442.0,60441.0,3.44111303]
[1723269886121,0.000832,60442.0,60441.0,3.45011303]
[1723269886122,0.001832,60442.0,60441.0,3.45011303]
[1723269886329,0.002832,60442.0,60441.0,3.45611303]
[1723269886555,0.001832,60442.0,60441.0,3.46711303]
[1723269886966,0.002832,60442.0,60441.0,3.47710427]
[1723269887820,0.002832,60442.0,60441.0,3.64740427]
[1723269888383,0.4768,60462.0,60461.0,0.496186]
[1723269888582,0.49107874,60465.0,60464.0,0.165387]
[1723269888803,0.49107874,60465.0,60462.0,0.165391]
[1723269888804,0.03040888,60465.0,60462.0,0.165391]
[1723269889042,0.03040888,60465.0,60464.0,0.02621892]
[1723269889251,0.03040888,60465.0,60463.0,0.02622044]
[1723269889376,0.03040888,60465.0,60464.0,0.02621892]
[1723269889581,0.03040888,60465.0,60464.0,0.165387]
[1723269889924,0.03040888,60465.0,60464.0,0.19160592]
[1723269890124,0.03640888,60465.0,60464.0,0.19260592]
[1723269890340,0.03040888,60465.0,60464.0,0.19160592]
[1723269890695,0.03631873,60465.0,60464.0,0.19260592]
[1723269890902,0.03631873,60465.0,60464.0,0.66070836]
[1723269891160,0.006,60465.0,60464.0,1.09627084]
[1723269891359,0.006,60465.0,60464.0,1.62847204]
[1723269891984,0.006,60465.0,60464.0,1.6284536]
[1723269892182,0.006,60465.0,60464.0,1.6294536]
[1723269892183,0.009,60465.0,60464.0,1.6294536]
[1723269892462,0.003,60465.0,60464.0,1.6284536]
[1723269892657,0.003832,60465.0,60464.0,1.6284536]
[1723269892809,0.000832,60465.0,60464.0,1.6284536]
[1723269893013,0.000832,60465.0,60464.0,1.6274536]
[1723269894372,0.000832,60465.0,60464.0,1.49014584]
[1723269894736,0.000832,60465.0,60464.0,1.62745156]
[1723269895878,0.000832,60465.0,60464.0,1.62945156]
[1723269896503,0.000832,60465.0,60464.0,1.63045156]
[1723269899025,0.000832,60465.0,60464.0,1.29967656]
[1723269899525,0.000832,60465.0,60464.0,1.23557656]
[1723269899718,0.000832,60465.0,60464.0,1.15727656]
[1723269900662,0.144032,60465.0,60464.0,0.49572656]
[1723269900864,0.144032,60465.0,60464.0,0.19303384]
[1723269901476,0.144032,60465.0,60464.0,0.35842084]
[1723269901678,0.144032,60465.0,60464.0,0.35542084]
[1723269901885,0.147032,60465.0,60464.0,0.35542084]
[1723269902104,0.151032,60465.0,60464.0,0.49273614]
[1723269902304,0.147032,60465.0,60464.0,0.49273614]
[1723269902512,0.144032,60465.0,60464.0,0.49273614]
[1723269902711,0.150032,60465.0,60464.0,0.82451114]
[1723269902942,0.147032,60465.0,60464.0,0.82451114]
[1723269903305,0.000832,60465.0,60464.0,0.82351114]
[1723269903705,0.004832,60465.0,60464.0,0.82351114]
[1723269904466,0.004832,60465.0,60464.0,0.82350977]
[1723269904846,0.007832,60465.0,60464.0,0.82350977]
[1723269905056,0.003832,60465.0,60464.0,0.82350977]
[1723269905245,0.000832,60465.0,60464.0,0.82350977]
[1723269905445,0.002832,60465.0,60464.0,0.82350977]
[1723269905645,0.003832,60465.0,60464.0,0.82350977]
[1723269905967,0.005832,60465.0,60464.0,0.82350977]
[1723269906312,0.000832,60465.0,60464.0,1.15428477]
[1723269906530,0.005832,60465.0,60464.0,1.15428477]
[1723269906974,0.005832,60465.0,60464.0,0.82350977]
[1723269907788,0.002832,60465.0,60464.0,0.82350977]
[1723269908472,0.003832,60465.0,60464.0,0.82350977]
[1723269908696,0.001832,60465.0,60464.0,0.82350977]
[1723269908908,0.000832,60465.0,60464.0,0.82350977]
[1723269909133,0.003832,60465.0,60464.0,0.82350977]
[1723269909917,0.146032,60465.0,60464.0,0.82350977]
[1723269910121,0.146032,60465.0,60464.0,0.16353285]
[1723269910320,0.642185,60465.0,60464.0,0.02621892]
[1723269910641,0.165391,60463.0,60458.0,0.165403]
[1723269910841,0.165391,60463.0,60459.0,0.30114317]
[1723269911041,0.165391,60463.0,60460.0,0.13732825]
[1723269911204,0.165391,60463.0,60461.0,0.30114451]
[1723269911405,0.165391,60463.0,60461.0,0.18983049]
[1723269912547,0.165391,60463.0,60461.0,0.19083049]
[1723269912961,0.165391,60463.0,60461.0,0.18983049]
[1723269913177,0.173391,60463.0,60461.0,0.19083049]
[1723269913379,0.173391,60463.0,60462.0,0.13733277]
[1723269913895,0.173391,60463.0,60462.0,0.16334683]
[1723269914315,0.008,60463.0,60462.0,0.16334683]
[1723269914512,0.144032,60465.0,60462.0,0.16334683]
[1723269914664,0.309417,60465.0,60463.0,0.13733277]
[1723269914864,0.309417,60465.0,60464.0,0.16334379]
[1723269915296,0.230517,60465.0,60464.0,0.16334379]
[1723269915863,0.233517,60465.0,60464.0,0.16334379]
[1723269916064,0.238517,60465.0,60464.0,0.16334379]
[1723269916505,0.235517,60465.0,60464.0,0.16334379]
[1723269916913,0.566286,60465.0,60464.0,0.16334379]
[1723269917117,0.235517,60465.0,60464.0,0.16334379]
[1723269918237,0.26928642,60465.0,60464.0,0.16334379]
[1723269918539,0.26428642,60465.0,60464.0,0.16334379]
[1723269918693,0.26528642,60465.0,60464.0,0.16334093]
[1723269918892,0.26128642,60465.0,60464.0,0.16334093]
[1723269919118,0.26428642,60465.0,60464.0,0.16334093]
[1723269919363,0.93082442,60465.0,60464.0,0.02601102]
[1723269919524,1.33749342,60465.0,60464.0,0.02601102]
[1723269919722,1.33749342,60465.0,60453.0,0.165416]
[1723269919723,0.165404,60458.0,60453.0,0.165416]
[1723269919950,0.1432,60457.0,60454.0,0.49261514]
[1723269920158,0.1432,60457.0,60455.0,0.13733969]
[1723269920159,0.308607,60457.0,60455.0,0.13733969]
[1723269920404,0.308607,60457.0,60456.0,0.30115461]
[1723269920538,0.308607,60457.0,60456.0,0.3271981]
[1723269920741,0.308607,60457.0,60456.0,0.16338318]
[1723269922199,0.308607,60457.0,60456.0,0.02604349]
[1723269922362,0.308607,60457.0,60456.0,0.16338504]
[1723269922540,0.311607,60457.0,60456.0,0.13734155]
[1723269922743,0.311607,60457.0,60456.0,0.16338503]
[1723269923295,0.64142,60457.0,60456.0,0.02604349]
[1723269923556,0.67227181,60457.0,60456.0,0.02604349]
[1723269923759,0.330841,60452.0,60445.0,0.0802]
[1723269923984,0.24703,60449.0,60446.0,0.13736103]
[1723269924227,0.330841,60452.0,60446.0,0.02605867]
[1723269924228,0.247021,60452.0,60446.0,0.02605867]
[1723269924426,0.165416,60454.0,60449.0,0.309327]
[1723269924629,0.330821,60456.0,60450.0,0.13735398]
[1723269924759,0.165418,60453.0,60451.0,0.13735398]
[1723269924959,0.165418,60453.0,60452.0,0.13735398]
[1723269925159,0.165418,60453.0,60452.0,0.16346952]
[1723269926206,0.169418,60453.0,60452.0,0.16346952]
[1723269926591,0.165418,60453.0,60452.0,0.16346952]
[1723269926791,0.168418,60453.0,60452.0,0.16346952]
[1723269928135,0.171418,60453.0,60452.0,0.16346952]
[1723269928364,0.168418,60453.0,60452.0,0.16346952]
[1723269928478,0.169418,60453.0,60452.0,0.16346952]
[1723269928680,0.166418,60453.0,60452.0,0.16346952]
[1723269928875,0.169418,60453.0,60452.0,0.16346952]
[1723269929104,0.502253,60453.0,60452.0,0.16346952]
[1723269929505,0.496253,60453.0,60452.0,0.16346952]
[1723269929745,0.498253,60453.0,60452.0,0.16346952]
[1723269930086,0.499253,60453.0,60452.0,0.16346952]
[1723269930571,0.497253,60453.0,60452.0,0.16346952]
[1723269931677,0.496253,60453.0,60452.0,0.16346952]
[1723269931873,0.499253,60453.0,60452.0,0.16346952]
[1723269932092,0.501253,60453.0,60452.0,0.16346952]
[1723269932213,0.496253,60453.0,60452.0,0.16346952]
[1723269932619,0.499253,60453.0,60452.0,0.16346952]
[1723269932824,0.498253,60453.0,60452.0,0.16346952]
[1723269933366,0.501253,60453.0,60452.0,0.02611554]
[1723269933569,0.501253,60453.0,60452.0,0.16346651]
[1723269933744,0.501253,60453.0,60452.0,0.13735097]
[1723269933944,0.501253,60453.0,60452.0,0.15847418]
[1723269934541,0.499253,60453.0,60452.0,0.15847418]
[1723269934744,0.500253,60453.0,60452.0,0.15847418]
[1723269934945,0.497253,60453.0,60452.0,0.15847418]
[1723269935103,0.498253,60453.0,60452.0,0.15847418]
[1723269935309,0.500253,60453.0,60452.0,0.15847418]
[1723269935509,0.498253,60453.0,60452.0,0.15847418]
[1723269935910,0.499253,60453.0,60452.0,0.15847418]
[1723269936114,0.644653,60453.0,60452.0,0.15847418]
[1723269936475,0.644653,60453.0,60452.0,0.02112321]
[1723269936676,0.165424,60451.0,60449.0,0.16381492]
[1723269936924,0.165424,60451.0,60450.0,0.02112499]
[1723269938491,0.49627,60451.0,60450.0,0.02112499]
[1723269938695,0.49627,60451.0,60450.0,0.02212499]
[1723269938899,0.165424,60451.0,60450.0,0.02212499]
[1723269939772,0.165424,60451.0,60450.0,0.15948259]
[1723269940558,0.165424,60451.0,60450.0,0.15848259]
[1723269940914,0.171424,60451.0,60450.0,0.15948259]
[1723269941120,0.165424,60451.0,60450.0,0.15848259]
[1723269941326,0.165424,60451.0,60450.0,0.15848267]
[1723269941550,0.171424,60451.0,60450.0,0.02212499]
[1723269941760,0.170424,60451.0,60450.0,0.15947777]
[1723269942306,0.165424,60451.0,60450.0,0.15847777]
[1723269942713,0.176424,60451.0,60450.0,0.16047777]
[1723269943088,0.171424,60451.0,60450.0,0.15947777]
[1723269943613,0.173424,60451.0,60450.0,0.15947777]
[1723269943975,0.167424,60451.0,60450.0,0.15847777]
[1723269944194,0.168424,60451.0,60450.0,0.15847777]
[1723269944635,0.167424,60451.0,60450.0,0.15847777]
[1723269945046,0.165424,60451.0,60450.0,0.15847777]
[1723269945205,0.167424,60451.0,60450.0,0.15847777]
[1723269945405,0.168424,60451.0,60450.0,0.15847777]
[1723269945619,0.167424,60451.0,60450.0,0.15847777]
[1723269945823,0.165424,60451.0,60450.0,0.15847777]
[1723269946025,0.167424,60451.0,60450.0,0.15847777]
[1723269947183,0.168424,60451.0,60450.0,0.15847777]
[1723269947417,0.167424,60451.0,60450.0,0.15847777]
[1723269947619,0.167424,60451.0,60450.0,0.02112499]
[1723269947761,0.168424,60451.0,60450.0,0.15847746]
[1723269947949,0.166424,60451.0,60450.0,0.15847746]
[1723269948333,0.003,60451.0,60450.0,0.15847746]
[1723269948539,0.002,60451.0,60450.0,0.46300246]
[1723269948808,0.16625,60453.0,60450.0,0.29757746]
[1723269949092,0.003,60451.0,60450.0,0.16022499]
[1723269949250,0.003,60451.0,60450.0,0.29757731]
[1723269949653,0.001,60451.0,60450.0,0.29757731]
[1723269950371,0.16542,60452.0,60450.0,0.29757731]
[1723269950586,0.16542,60452.0,60451.0,0.13735232]
[1723269950721,0.19619689,60452.0,60451.0,0.13735232]
[1723269950923,0.19619689,60452.0,60451.0,0.15847792]
[1723269951124,0.19619689,60452.0,60451.0,0.15847807]
[1723269952229,0.19819689,60452.0,60451.0,0.15847807]
[1723269953365,0.19919689,60452.0,60451.0,0.15847807]
[1723269954782,0.19919689,60452.0,60451.0,0.15847792]
[1723269954783,0.19922669,60452.0,60451.0,0.15847792]
[1723269954923,0.53006669,60452.0,60451.0,0.15847792]
[1723269955121,0.49926,60452.0,60451.0,0.0211256]
[1723269955375,0.49926,60452.0,60451.0,0.13735953]
[1723269955376,0.53006671,60452.0,60451.0,0.13735953]
[1723269955614,0.53006671,60452.0,60451.0,0.15846246]
[1723269956247,0.55597397,60452.0,60451.0,0.15846246]
[1723269956666,0.66957397,60452.0,60451.0,0.15846246]
[1723269956829,1.14101397,60452.0,60451.0,0.15846246]
[1723269957283,1.14101397,60452.0,60451.0,0.13735953]
[1723269958405,0.165431,60449.0,60445.0,0.165438]
[1723269958564,0.03079818,60448.0,60446.0,0.13736245]
[1723269958745,0.03079818,60448.0,60447.0,0.13736245]
[1723269958948,0.03079818,60448.0,60447.0,1.12311987]
[1723269959170,0.02891579,60452.0,60451.0,0.304523]
[1723269959404,0.02691579,60452.0,60451.0,0.93654637]
[1723269959611,0.02691579,60452.0,60451.0,0.95800683]
[1723269960214,0.05671725,60452.0,60451.0,0.95800683]
[1723269961091,0.05671725,60452.0,60451.0,0.62716083]
[1723269961288,0.05971725,60452.0,60451.0,0.62716083]
[1723269963228,0.05971725,60452.0,60451.0,1.28885283]
[1723269963426,0.003,60452.0,60451.0,1.28885283]
[1723269964317,0.003,60452.0,60451.0,1.15149038]
[1723269964508,0.001,60452.0,60451.0,1.47792978]
[1723269964886,0.002,60452.0,60451.0,0.82164438]
[1723269965086,0.002,60452.0,60451.0,0.95898405]
[1723269965242,0.000832,60453.0,60452.0,0.16542]
[1723269965461,0.000832,60453.0,60452.0,0.30115459]
[1723269965656,0.000832,60453.0,60452.0,0.48803103]
[1723269967508,0.000832,60453.0,60452.0,0.32361103]
[1723269967824,0.000832,60453.0,60452.0,0.32561103]
[1723269968028,0.166249,60453.0,60452.0,0.32561103]
[1723269968615,0.000832,60453.0,60452.0,0.32561103]
[1723269969438,0.000832,60453.0,60452.0,0.49103103]
[1723269969784,0.000832,60453.0,60452.0,0.32561103]
[1723269975860,0.000832,60453.0,60452.0,0.32561482]
[1723269976058,0.000832,60453.0,60452.0,0.32561467]
[1723269976844,0.000832,60453.0,60452.0,0.32461467]
[1723269976978,0.000832,60453.0,60452.0,0.32461482]
[1723269977585,0.000832,60453.0,60452.0,0.32261482]
[1723269977986,0.000832,60453.0,60452.0,0.32361482]
[1723269978187,0.000832,60453.0,60452.0,0.32261482]
[1723269978409,0.114432,60453.0,60452.0,0.32261482]
[1723269978895,0.114432,60453.0,60452.0,0.3226209]
[1723269979355,0.115432,60453.0,60452.0,0.3226209]
[1723269979801,0.001832,60453.0,60452.0,0.6326409]
[1723269980183,0.001832,60453.0,60452.0,0.9634809]
[1723269980355,0.001832,60453.0,60452.0,0.6326409]